[Event "Mitropa Cup Open 2022"]
[Site "Corte"]
[Date "2022.05.03"]
[Round "4.5"]
[White "Dragnev, Valentin"]
[Black "Basso, Pier Luigi"]
[Result "1-0"]
[ECO "C70"]
[WhiteElo "2548"]
[BlackElo "2583"]
[Annotator "TA"]
[PlyCount "61"]
[EventDate "2022.04.30"]
[EventType "team-tourn"]
[EventCountry "FRA"]
[SourceTitle "playchess.com"]
[Source "ChessBase"]
[SourceQuality "1"]
[TimeControl "40/5400+30:1800+30"]

{[%evp 9,61,29,27,34,39,18,68,69,76,81,71,60,118,117,94,85,68,93,70,66,145,125,144,146,144,145,152,134,173,177,193,195,212,209,204,181,371,381,490,456,792,768,865,850,1458,809,947,789,29992,29993,29994,29995,29995,29996]} 1. e4 {[%emt 0:00:02]} e5 {[%emt 0:05:01]} 2. Nf3 {[%emt 0:00:11]} Nc6 {[%emt 0:00:22]} 3. Bb5 {[%emt 0:00:10]} a6 {[%emt 0:00:15]} 4. Ba4 {[%emt 0:00:07]} Nge7 {[%emt 0:00:08]} 5. c3 {[%emt 0:01:27]} Ng6 {[%emt 0:02:15]} 6. d4 {[%emt 0:01:06] C70: Ruy Lopez: 3...a6 4 Ba4, Norwegian and Delayed Schliemann.} exd4 {[%emt 0:01:20] [#]} 7. Nxd4 $146 {[%emt 0:00:08]} ({Predecessor:} 7. cxd4 Bb4+ 8. Nc3 d5 9. exd5 Bxc3+ 10. bxc3 Qxd5 11. O-O O-O 12. h3 Na5 13. Ba3 {1-0 (81) Kovalev,V (2623)-Demchenko,A (2654) Chess.com INT 2022}) 7... Nxd4 {[%emt 0:04:44]} (7... Bc5 $11) 8. cxd4 $14 {[%emt 0:00:14] White is slightly better.} Bb4+ {[%emt 0:03:22]} 9. Nc3 {[%emt 0:01:05]} ({But not} 9. Bd2 Bxd2+ 10. Qxd2 (10. Nxd2 O-O $11) 10... O-O $11) 9... O-O {[%emt 0:03:20]} 10. O-O {[%emt 0:00:17]} Bxc3 {[%emt 0:01:54]} (10... d6 $14) 11. bxc3 $16 {[%emt 0:00:08]} d6 {[%emt 0:02:57]} 12. f4 {[%emt 0:02:44] [#] Threatens to win with f5.} f5 {[%emt 0:06:48]} 13. Bb3+ {[%emt 0:02:47]} (13. Qh5 {is more complex.} Ne7 14. Bb3+ Kh8 15. exf5 Bxf5 16. g4) 13... Kh8 {[%emt 0:02:58]} 14. e5 {[%emt 0:00:34]} (14. Qh5 {seems wilder.} b5 15. exf5 Rxf5 16. Qf3) 14... d5 {[%emt 0:02:07] Black is now going downhill.} (14... b5 $14) 15. Rf3 {[%emt 0:08:18]} Be6 {[%emt 0:07:07]} 16. Rh3 {[%emt 0:03:01] aiming for Qh5.} h6 {[%emt 0:08:56]} 17. Bc2 {[%emt 0:03:15]} Qe8 {[%emt 0:02:09]} 18. Qd3 {[%emt 0:03:51]} Qf7 {[%emt 0:03:12]} 19. g4 {[%emt 0:12:48][%cal Bg2g4,Bg4g5,Bg5h6][%mdl 32]} Ne7 {[%emt 0:07:08]} (19... fxg4 $2 20. Rh5 $18) 20. Ba3 {[%emt 0:04:16]} Kh7 {[%emt 0:11:40]} 21. g5 {[%emt 0:07:58]} Rh8 {[%emt 0:04:56]} 22. Kf2 {[%emt 0:01:42] And now Rg1 would win.} Kg8 $2 {[%emt 0:07:31]} (22... h5 {was worth a try.} 23. g6+ Nxg6) 23. gxh6 $18 {[%emt 0:02:39]} g6 {[%emt 0:03:10]} 24. Rg1 {[%emt 0:08:59] Black must now prevent Bxe7.} Kh7 {[%emt 0:00:17]} (24... c5 $142 25. Bxc5 Re8) 25. Rhg3 {[%emt 0:00:39]} Rag8 {[%emt 0:04:26]} 26. Rg5 {[%emt 0:02:51]} Nc6 {[%emt 0:01:40]} 27. Qg3 {[%emt 0:00:49]} Na5 {[%emt 0:01:39] [#]} 28. Be7 $1 {[%emt 0:04:52][%mdl 512]} Qxe7 {[%emt 0:02:05]} (28... Nc4 29. Bf6) 29. Rxg6 {[%emt 0:00:09] White mates.} Qf7 {[%emt 0:00:58]} 30. Rg7+ {[%emt 0:00:35][%mdl 64] Skewer} Rxg7 {[%emt 0:00:24]} 31. hxg7 {[%emt 0:00:07] Weighted Error Value: White=0.08 (flawless) /Black=0.58} ({Not} 31. Qxg7+ Qxg7 32. Rxg7+ (32. hxg7 Re8 $15) 32... Kxh6 $11) 1-0

[Event "Mitropa Cup Open 2022"]
[Site "Corte"]
[Date "2022.05.03"]
[Round "4.6"]
[White "Moroni, Luca Jr"]
[Black "Blohberger, Felix"]
[Result "1-0"]
[ECO "A21"]
[WhiteElo "2584"]
[BlackElo "2502"]
[Annotator "TA"]
[PlyCount "79"]
[EventDate "2022.04.30"]
[EventType "team-tourn"]
[EventCountry "FRA"]
[SourceTitle "playchess.com"]
[Source "ChessBase"]
[SourceQuality "1"]
[TimeControl "40/5400+30:1800+30"]

{[%evp 9,79,13,17,6,12,11,17,15,24,12,27,16,25,11,29,0,0,0,0,0,0,0,17,7,29,0,58,0,6,-8,-7,-13,-7,-36,0,0,0,0,0,-31,0,0,0,0,0,0,0,-26,-26,-18,-28,-23,-7,-8,0,0,107,111,150,161,626,595,624,625,775,763,763,759,754,753,2862,1529]} 1. c4 {[%emt 0:03:58]} e5 {[%emt 0:00:42]} 2. Nc3 {[%emt 0:00:15]} Bb4 {[%emt 0:00:09]} 3. Nd5 {[%emt 0:00:38]} a5 {[%emt 0:00:08]} 4. Nf3 {[%emt 0:00:15]} d6 {[%emt 0:00:11]} 5. a3 {[%emt 0:00:03]} Bc5 {[%emt 0:00:08]} 6. e3 {[%emt 0:00:03] A21: English Opening: 1...e5 2 Nc3.} c6 {[%emt 0:00:35]} 7. Nc3 {[%emt 0:00:03]} Nd7 {[%emt 0:01:48]} 8. d4 {[%emt 0:00:14] The position is equal.} Ba7 {[%emt 0:00:08]} 9. Be2 {[%emt 0:00:03]} Ngf6 {[%emt 0:00:18]} 10. b4 {[%emt 0:00:03]} O-O {[%emt 0:00:39]} 11. Bb2 {[%emt 0:00:03]} Bb8 {[%emt 0:02:52]} 12. d5 {[%emt 0:00:07]} cxd5 {[%emt 0:02:51]} 13. cxd5 {[%emt 0:02:47] [#]} axb4 $146 {[%emt 0:06:23]} ({Predecessor:} 13... Nb6 14. O-O Bg4 15. Qb3 a4 16. Qd1 Qe7 17. Rc1 Rc8 18. Nd2 Bd7 19. e4 Bc7 {½-½ (68) Wojtaszek,R (2717)-Bluebaum,M (2647) Warsaw 2020}) 14. axb4 {[%emt 0:00:18]} Rxa1 {[%emt 0:00:07]} 15. Qxa1 {[%emt 0:06:17]} Ne8 {[%emt 0:10:13]} 16. O-O {[%emt 0:12:37]} f5 {[%emt 0:01:11]} 17. Nd2 {[%emt 0:02:01]} Kh8 {[%emt 0:15:52]} ({Black should play} 17... Nb6 $11) 18. Kh1 {[%emt 0:11:33]} (18. Nc4 $14) 18... Nef6 {[%emt 0:11:22]} 19. f4 {[%emt 0:07:35]} Nb6 {[%emt 0:01:14]} 20. Bf3 {[%emt 0:10:25]} Bd7 {[%emt 0:10:10]} 21. Rc1 {[%emt 0:05:59]} Ng4 {[%emt 0:03:33]} 22. Bxg4 {[%emt 0:05:13]} fxg4 {[%emt 0:00:20]} 23. fxe5 {[%emt 0:13:21]} dxe5 {[%emt 0:00:13]} 24. Rf1 {[%emt 0:00:28]} (24. b5 $5 {[%cal Rb2a3]}) 24... Bd6 {[%emt 0:05:22]} 25. Nce4 {[%emt 0:04:34][%csl LRd6,LRe5]} Bxb4 {[%emt 0:03:02]} 26. Bxe5 {[%emt 0:00:06]} Rxf1+ {[%emt 0:00:30]} 27. Nxf1 {[%emt 0:00:05] Pair of Knights!} Bf8 {[%emt 0:09:14]} ({Don't take} 27... Nxd5 28. Bxg7+ Kg8 29. Bb2 $14) 28. Nc3 {[%emt 0:07:40][%cal Be4c3,Bc3d1,Bd1e3][%mdl 32]} Nc4 {[%emt 0:00:32]} 29. Bd4 {[%emt 0:00:01]} b5 {[%emt 0:00:13][%cal Bb7b5,Bb5b4][%mdl 32]} 30. e4 {[%cal Be3e4,Be4e5,Be5e6][%mdl 32]} b4 31. Nd1 {[%emt 0:02:09]} Bb5 {[%emt 0:09:16]} 32. Nde3 {[%emt 0:00:43]} Nd6 {[%emt 0:04:41] [#]} (32... Nxe3 $11 {keeps the balance.} 33. Nxe3 Qe8) 33. e5 $1 $16 {[%emt 0:02:10]} Ne4 {[%emt 0:00:14]} 34. Ng3 {[%emt 0:01:40]} Nf2+ {[%emt 0:01:25]} (34... Nc5 {is tougher.}) 35. Kg1 $18 {[%emt 0:00:01] White is clearly winning.} Nd3 {[%emt 0:00:07]} 36. e6 {[%emt 0:00:30]} Nf4 {[%emt 0:00:31]} 37. Ngf5 {[%emt 0:02:33][%cal Rd4g7]} Ne2+ {[%emt 0:00:43]} 38. Kf2 {[%emt 0:00:16][%cal Rd4g7]} Nxd4 {[%emt 0:01:59]} 39. Qxd4 {[%emt 0:00:01]} Qg5 {[%emt 0:00:33]} 40. d6 {[%emt 0:00:26] Weighted Error Value: White=0.07 (flawless) /Black=0.42} 1-0

[Event "Mitropa Cup Open 2022"]
[Site "Corte"]
[Date "2022.05.03"]
[Round "4.7"]
[White "Shengelia, David"]
[Black "Lodici, Lorenzo"]
[Result "0-1"]
[ECO "E36"]
[WhiteElo "2485"]
[BlackElo "2545"]
[Annotator "TA"]
[PlyCount "108"]
[EventDate "2022.04.30"]
[EventType "team-tourn"]
[EventCountry "FRA"]
[SourceTitle "playchess.com"]
[Source "ChessBase"]
[SourceQuality "1"]
[TimeControl "40/5400+30:1800+30"]

{[%evp 10,108,0,0,39,14,28,23,33,-28,-36,-35,-16,-25,-22,-4,-11,-64,-80,-77,-60,-97,0,0,0,0,0,-7,-31,-20,0,-66,-72,-78,-33,-22,0,0,3,8,11,0,0,0,0,0,8,0,0,0,0,0,0,-8,-8,-8,-8,-16,0,0,0,0,0,0,0,0,0,0,-8,-231,-258,-365,-362,-322,-322,-777,-535,-502,-524,-576,-570,-589,-444,-623,-595,-593,-571,-652,-627,-995,-1005,-1672,-1629,-2099,-1873,-1512,-1634,-1495,-1659,-1370,-1409]} 1. d4 {[%emt 0:00:01]} Nf6 {[%emt 0:04:43]} 2. c4 {[%emt 0:00:14]} e6 {[%emt 0:00:04]} 3. Nc3 {[%emt 0:00:09]} Bb4 {[%emt 0:00:06]} 4. Qc2 {[%emt 0:00:22]} d5 {[%emt 0:00:16][%cal Bd7d5,Bd5d4,Bd4d3][%mdl 32]} 5. a3 {[%emt 0:00:21]} Bxc3+ {[%emt 0:00:05]} 6. Qxc3 {[%emt 0:00:05]} c5 {[%emt 0:01:58] E36: Nimzo-Indian: Classical: 4...d5 5 a3.} 7. dxc5 {[%emt 0:13:47]} d4 {[%emt 0:00:19]} 8. Qc2 {[%emt 0:07:13]} e5 {[%emt 0:09:35][%cal Be6e5,Be5e4][%mdl 32] White has an edge.} 9. g3 {[%emt 0:11:19]} (9. e3 $14) 9... O-O $11 {[%emt 0:15:25][%mdl 1024] Black has compensation.} 10. Bg2 {[%emt 0:00:51]} a5 {[%emt 0:02:26] [#]} 11. Nf3 $146 {[%emt 0:08:13]} ({Predecessor:} 11. Bd2 Nc6 12. Rd1 Re8 13. e4 a4 14. Bb4 b6 15. cxb6 Qxb6 16. Bd6 Ba6 17. Nf3 {0-1 (30) Shishkin,V (2506)-Azarov,S (2605) Bucharest 2008}) 11... e4 {[%emt 0:05:03]} 12. Ng5 {[%emt 0:09:04][%cal Bf3g5,Bg5h3,Bh3f4][%mdl 32]} d3 {[%emt 0:01:05]} 13. Qd2 {[%emt 0:00:50]} ({White should play} 13. exd3 $1 $11 exd3 14. Qc3) 13... Re8 $15 {[%emt 0:03:30]} 14. O-O {[%emt 0:02:39]} h6 {[%emt 0:09:55]} 15. Nh3 {[%emt 0:00:13]} Nc6 {[%emt 0:00:43]} (15... Bxh3 $17 16. Bxh3 Nc6 17. exd3 Nd4) 16. Nf4 $11 {[%emt 0:09:43][%cal Re2d3]} dxe2 {[%emt 0:08:51]} 17. Nxe2 {[%emt 0:02:03]} Be6 {[%emt 0:03:14]} 18. Qc3 {[%emt 0:23:08]} Qd3 {[%emt 0:16:31]} 19. Re1 {[%emt 0:00:06]} Bxc4 {[%emt 0:02:33] White must now prevent ...Nd5.} 20. Bf4 {[%emt 0:00:08]} (20. Bd2 $11) 20... Nd5 $15 {[%emt 0:03:10] Pair of Knights!} 21. Qc1 {[%emt 0:00:22]} Qb3 {[%emt 0:04:40] 0x0.00192b2779d6dp-1022s more active pieces.} 22. Nc3 {[%emt 0:06:51]} Nxc3 {[%emt 0:03:17]} 23. Qxc3 {[%emt 0:00:17]} Qxc3 {[%emt 0:00:06]} 24. bxc3 {[%emt 0:00:02]} Bd3 {[%emt 0:00:13]} 25. Bf1 {[%emt 0:02:49]} Rad8 {[%emt 0:00:09]} 26. Rad1 {[%emt 0:01:38]} Bxf1 {[%emt 0:01:38]} 27. Kxf1 {[%emt 0:00:07]} f5 {[%emt 0:00:29]} 28. Bc7 {[%emt 0:00:55]} Rxd1 {[%emt 0:00:53]} 29. Rxd1 $11 {[%emt 0:00:01][%mdl 4096] Endgame KRB-KRN} Kf7 {[%emt 0:00:18]} 30. Ke2 {[%emt 0:01:14]} Re7 {[%emt 0:01:00]} 31. Bd6 {[%emt 0:00:17]} Rd7 {[%emt 0:00:23]} 32. f3 {[%emt 0:00:27]} exf3+ {[%emt 0:00:20]} 33. Kxf3 {[%emt 0:00:04]} Ne5+ {[%emt 0:00:59]} 34. Kf4 {[%emt 0:01:17]} Ke6 {[%emt 0:00:03]} 35. h4 {[#] Prevents g5+. Threatens to win with Re1.} Nc4 {[%emt 0:01:44][%csl LRa3,LRd6]} 36. h5 {[%emt 0:00:52]} Nxa3 {[%emt 0:02:07]} (36... Nxd6 $2 37. Rxd6+ Rxd6 38. cxd6 $18) 37. Re1+ {[%emt 0:00:12]} Kd5 {[%emt 0:00:22] ...Nc4 is the strong threat.} 38. Kxf5 {[%emt 0:00:58]} Nc4 {[%emt 0:00:01]} 39. Rd1+ $2 {[%emt 0:00:30] Now White is beyond hope.} (39. Be7 $1 $11 {and White is okay.}) 39... Kc6 $19 {[%emt 0:00:03]} 40. Ke6 {[%emt 0:00:14]} (40. Ra1 $142) 40... b5 {[%emt 0:01:26]} 41. Rd4 {[%emt 0:02:15]} a4 {[%emt 0:00:44]} 42. Bf4 $2 {[%emt 0:10:28]} (42. Rd1) 42... Ra7 {[%emt 0:00:38] Black is clearly winning.} 43. Rd8 {[%emt 0:00:19]} Kxc5 {[%emt 0:01:29]} 44. Rc8+ {[%emt 0:00:10]} Kb6 {[%emt 0:00:02]} 45. Rb8+ {[%emt 0:00:15]} Ka6 {[%emt 0:01:29] [#] Strongly threatening ...a3.} 46. Bc1 {[%emt 0:03:26]} (46. Rd8 $142) 46... a3 {[%emt 0:00:06]} 47. Bxa3 {[%emt 0:00:03]} Nxa3 {[%emt 0:00:05] KRN-KR} 48. Kd6 {[%emt 0:00:01]} Ka5 {[%emt 0:01:41] aiming for ...Ka4.} 49. Kc6 {[%emt 0:00:29]} Ka4 {[%emt 0:00:07]} 50. Kb6 {[%emt 0:01:29]} Rf7 {[%emt 0:00:05]} 51. Ra8+ {[%emt 0:00:05]} Kb3 {[%emt 0:00:04] And now ...Rf6+ would win.} 52. g4 {[%emt 0:00:04]} Rf4 {[%emt 0:00:20]} 53. g5 {[%emt 0:00:08]} hxg5 {[%emt 0:00:05]} 54. Ra7 {[%emt 0:00:05]} Rh4 {[%emt 0:00:04] Weighted Error Value: White=0.59/Black=0.14 (very precise)} 0-1

[Event "Mitropa Cup Open 2022"]
[Site "Corte"]
[Date "2022.05.03"]
[Round "4.8"]
[White "Di Benedetto, Edoardo"]
[Black "Diermair, Andreas"]
[Result "1/2-1/2"]
[ECO "E15"]
[WhiteElo "2407"]
[BlackElo "2469"]
[Annotator "TA"]
[PlyCount "86"]
[EventDate "2022.04.30"]
[EventType "team-tourn"]
[EventCountry "FRA"]
[SourceTitle "playchess.com"]
[Source "ChessBase"]
[SourceQuality "1"]
[TimeControl "40/5400+30:1800+30"]

{[%evp 19,86,0,24,14,9,0,17,13,14,10,19,36,27,0,37,1,16,-36,-18,-62,-54,-72,-62,-54,-54,-80,-72,-72,-74,-64,-52,-72,-74,-82,-23,-24,-24,-24,-27,-21,0,0,0,-264,-281,-272,-267,-349,-355,-466,-462,-417,0,0,0,0,0,0,0,0,0,0,0,0,0,0,0,0,0]} 1. d4 {[%emt 0:05:05]} Nf6 {[%emt 0:00:09]} 2. c4 {[%emt 0:00:05]} e6 {[%emt 0:00:05]} 3. Nf3 {[%emt 0:00:05]} b6 {[%emt 0:00:09]} 4. g3 {[%emt 0:00:06]} Ba6 {[%emt 0:00:10]} 5. b3 {[%emt 0:00:36]} Bb4+ {[%emt 0:00:09]} 6. Bd2 {[%emt 0:00:09]} Be7 {[%emt 0:00:04]} 7. Bg2 {[%emt 0:00:10]} O-O {[%emt 0:00:37]} 8. O-O {[%emt 0:00:13]} d5 {[%emt 0:01:54]} 9. cxd5 {[%emt 0:04:39]} exd5 {[%emt 0:00:06]} 10. Nc3 {[%emt 0:02:03]} Re8 {[%emt 0:00:30]} 11. Ne5 {[%emt 0:03:09][%cal Ob3b4] E15: Queen's Indian: 4 g3 sidelines, 4 g3 Ba6 and 4 g3 Bb7 early deviations.} Bb7 {[%emt 0:05:50]} 12. Rc1 {[%emt 0:05:07]} Na6 {[%emt 0:05:57]} 13. Bf4 {[%emt 0:05:26]} h6 {[%emt 0:11:11]} 14. Nb5 {[%emt 0:15:04]} Bf8 {[%emt 0:20:55][%cal Oc7c6]} 15. a4 {[%emt 0:11:54]} c5 {[%emt 0:00:50] [#]} 16. Nc4 $146 {[%emt 0:03:36][%cal Be5c4,Bc4e3,Be3f5][%mdl 32]} ({Predecessor:} 16. Qd2 Qe7 17. h4 Qe6 18. Rfd1 Red8 19. Qb2 Qe7 20. Nd3 Ne4 21. Be5 Bc6 22. dxc5 bxc5 23. Bxe4 dxe4 {½-½ (51) Dzagnidze,N (2529)-Mkrtchian,L (2434) Huaian 2016}) 16... Re6 {[%emt 0:02:59]} 17. Ne3 {[%emt 0:05:08]} Ne4 {[%emt 0:04:45]} 18. f3 {[%emt 0:24:26]} (18. Ng4 $11) 18... Nd6 $15 {[%emt 0:12:07] Black wants to play ...Nxb5.} 19. dxc5 {[%emt 0:01:07]} Nxb5 {[%emt 0:02:39]} 20. axb5 {[%emt 0:00:07] Hoping for c6.} Nxc5 {[%emt 0:00:10]} 21. Nf5 $1 {[%emt 0:05:59]} Qf6 {[%emt 0:07:43]} 22. Nd4 {[%emt 0:03:29]} Ree8 {[%emt 0:00:09] And now ...g5 would win.} 23. Qd2 {[%emt 0:00:58]} a6 {[%emt 0:05:26]} 24. b4 {[%emt 0:01:49]} Ne6 {[%emt 0:01:19]} 25. Nxe6 {[%emt 0:00:39]} Qxe6 {[%emt 0:00:41]} 26. Rc7 {[%emt 0:00:10]} Rab8 {[%emt 0:01:15]} ({Better is} 26... Re7 $1 $17 {White must now prevent ...Rxc7.} 27. Rxe7 Bxe7 28. bxa6 Bxa6) 27. Rfc1 {[%emt 0:00:45] aiming for bxa6.} axb5 {[%emt 0:03:07]} (27... Qxe2 $2 28. Qxe2 Rxe2 29. Bf1 $18) 28. h4 {[%emt 0:01:07] Prevents g5.} Ba8 {[%emt 0:01:35]} (28... Qxe2 $2 29. Qxe2 Rxe2 30. Rd7 $18) 29. e3 {[%emt 0:00:44]} Rbd8 {[%emt 0:05:13][%cal Od5d4]} (29... d4 $5 30. Qxd4 (30. exd4 Rbd8 $15) 30... Rbd8 $11) 30. Qd4 {[%emt 0:00:34]} Be7 {[%emt 0:00:41] ...Bf6 is the strong threat.} 31. Be5 {[%emt 0:00:46][%mdl 8192] [#]} (31. Kh2 $11 {and White is okay.}) 31... f6 $1 $19 {[%emt 0:01:39]} 32. Bf4 {[%emt 0:00:35] [#]} g5 $1 {[%emt 0:00:42]} 33. hxg5 {[%emt 0:00:34]} hxg5 {[%emt 0:00:18]} 34. Kf2 {[%emt 0:00:28][%cal Oc1h1]} gxf4 {[%emt 0:01:19]} 35. Qxf4 {[%emt 0:00:06]} Bd6 $2 {[%emt 0:01:43]} (35... d4 $19 36. e4 d3) 36. Qh6 $11 {[%emt 0:00:06][%csl Gc7][%cal Rh6g7] The position is equal.} Qxe3+ {[%emt 0:03:26]} 37. Qxe3 {[%emt 0:00:06][%cal Oe3h6] White wants to mate with Qh6! Dancing on a razor blade.} Rxe3 {[%emt 0:00:01]} 38. Kxe3 {[%emt 0:00:11] Threatens to win with Rc8.} d4+ {[%emt 0:00:30]} 39. Kd3 {[%emt 0:01:04]} (39. Kd2 {with more complications.} Bxb4+ 40. Kd3 Bd5 41. Bh3) 39... Bxc7 {[%emt 0:00:13]} 40. Rxc7 {[%emt 0:00:05]} Bd5 {[%emt 0:00:21]} 41. Bh3 {[%emt 0:31:13]} Bc4+ {[%emt 0:08:02]} 42. Kd2 {[%emt 0:00:00]} Re8 {[%emt 0:00:18]} 43. Rc8 {[%emt 0:00:00]} Rxc8 {[%emt 0:00:15] And White is the lucky defender.  Weighted Error Value: White=0.32/Black=0.22 (precise)} 1/2-1/2

[Event "Mitropa Cup Open 2022"]
[Site "Corte"]
[Date "2022.05.04"]
[Round "5.2"]
[White "Blohberger, Felix"]
[Black "Maurizzi, Marc`Andria"]
[Result "1-0"]
[ECO "B40"]
[WhiteElo "2510"]
[BlackElo "2483"]
[Annotator "TA"]
[PlyCount "88"]
[EventDate "2022.04.30"]
[EventType "team-tourn"]
[EventCountry "FRA"]
[SourceTitle "playchess.com"]
[Source "ChessBase"]
[SourceQuality "1"]
[WhiteTeam "AUT"]
[BlackTeam "FRA"]
[WhiteTeamCountry "AUT"]
[TimeControl "40/5400+30:1800+30"]

{[%evp 27,88,29,29,32,28,32,31,30,31,35,43,30,52,44,53,41,42,48,64,39,153,45,45,20,46,30,30,14,12,12,20,8,22,12,12,12,32,12,12,12,12,12,2,13,12,0,0,0,0,0,0,-5,0,7,264,258,260,254,2057,1266,29981,29982,1986]} 1. e4 {[%emt 0:00:05]} c5 {[%emt 0:00:41]} 2. Nf3 {[%emt 0:00:10]} e6 {[%emt 0:00:39]} 3. d4 {[%emt 0:00:08]} cxd4 {[%emt 0:00:04]} 4. Nxd4 {[%emt 0:00:06]} Nf6 {[%emt 0:00:03]} 5. Nc3 {[%emt 0:00:25]} Nc6 {[%emt 0:00:09]} 6. Nxc6 {[%emt 0:00:13]} bxc6 {[%emt 0:00:06]} 7. e5 {[%emt 0:00:06]} Nd5 {[%emt 0:00:03]} 8. Ne4 {[%emt 0:00:08]} Qc7 {[%emt 0:01:47]} 9. f4 {[%emt 0:01:33]} Qb6 {[%emt 0:00:50]} 10. c4 {[%emt 0:00:31]} Bb4+ {[%emt 0:00:06]} 11. Ke2 {[%emt 0:00:06]} f5 {[%emt 0:00:04]} 12. Nf2 {[%emt 0:00:31]} Ba6 {[%emt 0:00:49]} 13. Kf3 {[%emt 0:00:13]} Ne7 {[%emt 0:00:29]} 14. Be3 {[%emt 0:00:08]} Bc5 {[%emt 0:00:22]} 15. Bxc5 {[%emt 0:00:08] B45: Sicilian Four Knights.} Qxc5 {[%emt 0:00:04]} 16. Qa4 {[%emt 0:00:05]} Bb7 {[%emt 0:14:35][%cal Og7g5]} 17. h4 {[%emt 0:01:37] White is slightly better.} Qb6 {[%emt 0:08:18]} 18. Qa3 {[%emt 0:05:33]} c5+ {[%emt 0:03:59]} 19. Kg3 {[%emt 0:00:07]} O-O {[%emt 0:06:48]} 20. Rd1 {[%emt 0:02:49] Against d6} Rfd8 {[%emt 0:02:41]} 21. Be2 {[%emt 0:24:59] [#]} a5 $146 {[%emt 0:22:08]} ({Less strong is} 21... Qc6 22. Bf3 Qc8 23. Bxb7 Qxb7 24. Qxc5 $16) ({Predecessor:} 21... Rab8 22. Rd2 Nc6 23. Rd6 Qb4 24. Qxb4 Nxb4 25. a3 Nc2 26. Rc1 Nd4 27. Bd1 Be4 {1-0 (37) Esipenko,A (2716)-Abasov,N (2656) Krasnaya Polyana 2021}) 22. Rd6 {[%emt 0:05:01]} Bc6 {[%emt 0:03:27]} 23. Rhd1 {[%emt 0:04:18]} Rdb8 {[%emt 0:06:43]} (23... Ra7 $14) 24. R6d2 {[%emt 0:17:36] White is more active.} (24. Nd3 $16) 24... a4 $1 $14 {[%emt 0:06:03]} 25. Bf3 {[%emt 0:03:36]} Rb7 {[%emt 0:10:24]} 26. Bxc6 {[%emt 0:05:38]} Qxc6 {[%emt 0:00:54]} 27. Rd6 {[%emt 0:01:16]} Qc8 {[%emt 0:00:06]} 28. R1d2 {[%emt 0:01:11]} h6 {[%emt 0:01:56]} 29. Kh2 {[%emt 0:04:53]} Raa7 {[%emt 0:03:57]} 30. Qe3 Rb4 {[%emt 0:00:44]} 31. Rc2 {[%emt 0:02:20]} Rbb7 {[%emt 0:01:50]} 32. Kg1 {[%emt 0:04:00]} Ra5 {[%emt 0:01:07]} 33. Nd3 {[%emt 0:00:30][%cal Bf2d3,Bd3e1,Be1c2,Bc2a3][%mdl 32]} Qc7 {[%emt 0:00:30]} 34. Ne1 Nc6 {[%emt 0:01:04][%cal Be7c6,Bc6b4,Bb4a2][%mdl 32]} 35. Rcd2 {[%emt 0:02:45]} Qc8 {[%emt 0:00:34]} 36. Qc3 {[%emt 0:03:34][%cal Od6c6] Black must now prevent Rxc6!} Raa7 {[%emt 0:01:53]} 37. Nc2 Nb4 {[%emt 0:00:13]} 38. Na3 {[%emt 0:02:34]} Nxa2 39. Qg3 {[%emt 0:00:31]} Rb3 {[%emt 0:01:11]} 40. Qg6 {[%emt 0:00:06] Nb5 is the strong threat.} Kh8 $2 {[%emt 0:02:37][%mdl 8192] This costs Black the game.} (40... Nc3 $1 $11 {and Black has nothing to worry.}) 41. Nb5 $40 {[%emt 0:31:20][%mdl 128] White attacks with force.} Rb7 {[%emt 0:10:32] [#]} 42. Ra6 $1 {[%emt 0:00:00] Hoping for Nd6.} R7xb5 {[%emt 0:00:06]} (42... R3xb5 43. cxb5 Nb4) 43. cxb5 {[%emt 0:00:00] Intending Ra7 and mate.} c4 {[%emt 0:00:35] [#]} 44. Rxd7 $1 {[%emt 0:00:00][%csl Gd7][%cal Rg6g7][%mdl 512]} Rg3 {Weighted Error Value: White=0.12 (very precise) /Black=0.37} 1-0